bitfinex-derivatives/quotes_BTCF0:USTF0_20241003
["timestamp","ask_amount","ask_price","bid_price","bid_amount"]
[1727921776764,0.0376,61194.0,61193.0,0.081711]
[1727921777062,0.0376,61194.0,61193.0,0.092711]
[1727921778256,0.0376,61194.0,61193.0,0.106711]
[1727921778757,0.0386,61194.0,61193.0,0.106711]
[1727921779369,0.120311,61194.0,61193.0,0.025]
[1727921779669,0.65884,61194.0,61183.0,0.0038]
[1727921779860,0.081728,61181.0,61180.0,0.0038]
[1727921780161,0.081728,61181.0,61180.0,0.08173]
[1727921780162,0.13,61181.0,61180.0,0.08173]
[1727921780367,0.0364,61183.0,61181.0,0.081728]
[1727921780761,0.0224,61183.0,61181.0,0.081728]
[1727921781267,0.0375,61182.0,61181.0,0.081728]
[1727921782170,0.0335,61182.0,61181.0,0.081728]
[1727921782355,0.0335,61182.0,61181.0,0.094728]
[1727921782552,0.05738208,61182.0,61181.0,0.094728]
[1727921782749,0.05738208,61182.0,61181.0,0.098728]
[1727921782750,0.05838208,61182.0,61181.0,0.098728]
[1727921782967,0.09798208,61182.0,61181.0,0.098728]
[1727921783159,0.09898208,61182.0,61181.0,0.088728]
[1727921783762,0.45978208,61182.0,61181.0,0.088728]
[1727921784264,0.54150908,61182.0,61181.0,0.088728]
[1727921787259,0.60014317,61182.0,61181.0,0.088728]
[1727921788659,0.54150908,61182.0,61181.0,0.088728]
[1727921789657,0.54150908,61182.0,61181.0,0.007]
[1727921791272,0.081739,61173.0,61172.0,0.0038]
[1727921791462,0.081739,61173.0,61168.0,0.00245216]
[1727921791463,0.081744,61169.0,61168.0,0.00245216]
[1727921792672,0.082744,61169.0,61168.0,0.00245216]
[1727921793063,0.082744,61169.0,61168.0,0.08419816]
[1727921793259,0.001,61169.0,61168.0,0.08419816]
[1727921793479,0.001,61169.0,61168.0,0.21419816]
[1727921793662,0.001,61169.0,61168.0,0.70463816]
[1727921794768,0.001,61173.0,61172.0,0.08174]
[1727921795070,0.001,61173.0,61172.0,0.21174]
[1727921795674,0.02326567,61177.0,61173.0,0.081738]
[1727921795970,0.081731,61179.0,61173.0,0.081738]
[1727921796172,0.3608,61176.0,61173.0,0.081738]
[1727921796368,0.3608,61176.0,61174.0,0.081737]
[1727921796562,0.3608,61176.0,61175.0,0.081736]
[1727921798274,0.02322874,61179.0,61176.0,0.081734]
[1727921798473,0.0038,61187.0,61178.0,0.13]
[1727921798775,0.3608,61191.0,61186.0,0.211722]
[1727921798973,0.3608,61191.0,61186.0,0.13]
[1727921799273,0.3608,61191.0,61189.0,0.081717]
[1727921799476,0.3608,61191.0,61186.0,0.13]
[1727921799664,0.3608,61191.0,61190.0,0.081716]
[1727921799865,0.3728,61191.0,61190.0,0.081716]
[1727921801565,0.3838,61191.0,61190.0,0.081716]
[1727921801771,0.44242136,61191.0,61190.0,0.081716]
[1727921801966,0.42342136,61191.0,61190.0,0.081716]
[1727921802169,0.42442136,61191.0,61190.0,0.081716]
[1727921802565,0.42342136,61191.0,61190.0,0.081716]
[1727921802762,0.41942136,61191.0,61190.0,0.081716]
[1727921803371,0.42142136,61191.0,61190.0,0.081716]
[1727921803579,0.42542136,61191.0,61190.0,0.081716]
[1727921803775,0.3668,61191.0,61190.0,0.081716]
[1727921804670,0.3648,61191.0,61190.0,0.081716]
[1727921805271,0.3618,61191.0,61190.0,0.081716]
[1727921805472,0.3628,61191.0,61190.0,0.081716]
[1727921805971,0.3618,61191.0,61190.0,0.081716]
[1727921806879,0.3608,61191.0,61190.0,0.081716]
[1727921807579,0.3618,61191.0,61190.0,0.081716]
[1727921808767,0.001,61191.0,61190.0,0.081716]
[1727921810888,0.13,61193.0,61190.0,0.081716]
[1727921811075,0.001,61191.0,61190.0,0.081716]
[1727921811779,0.05961988,61191.0,61190.0,0.081716]
[1727921812578,0.05861988,61191.0,61190.0,0.081716]
[1727921814187,0.05961988,61191.0,61190.0,0.081716]
[1727921814674,0.05861988,61191.0,61190.0,0.081716]
[1727921815076,0.05961988,61191.0,61190.0,0.081716]
[1727921816285,0.05861988,61191.0,61190.0,0.081716]
[1727921816477,0.06061988,61191.0,61190.0,0.081716]
[1727921817682,0.06161988,61191.0,61190.0,0.081716]
[1727921817882,0.06261988,61191.0,61190.0,0.081716]
[1727921818487,0.49032,61190.0,61175.0,0.0038]
[1727921818680,0.081738,61175.0,61167.0,0.0038]
[1727921818882,0.13,61169.0,61157.0,0.13]
[1727921819182,0.0401,61174.0,61164.0,0.081751]
[1727921819183,0.13,61173.0,61164.0,0.081751]
[1727921819589,0.13,61173.0,61160.0,0.02357559]
[1727921819590,0.0811,61174.0,61166.0,0.13]
[1727921819772,0.3648,61191.0,61160.0,0.02357559]
[1727921819773,0.081719,61188.0,61174.0,0.081737]
[1727921819979,0.082,61186.0,61177.0,0.13]
[1727921820284,0.082,61186.0,61182.0,0.13]
[1727921820488,0.082,61186.0,61179.0,0.08173]
[1727921821787,0.0377,61185.0,61179.0,0.08173]
[1727921823491,0.119424,61185.0,61179.0,0.08173]
[1727921823695,0.121424,61185.0,61179.0,0.08173]
[1727921824193,0.125424,61185.0,61179.0,0.08173]
[1727921825892,0.3608,61182.0,61179.0,0.08173]
[1727921826092,0.081729,61181.0,61170.0,0.13]
[1727921826391,0.13,61180.0,61169.0,0.0377]
[1727921826590,0.21173,61180.0,61169.0,0.119444]
[1727921826780,0.21173,61180.0,61169.0,0.0377]
[1727921826981,0.21173,61180.0,61170.0,0.081743]
[1727921828086,0.21273,61180.0,61170.0,0.081743]
[1727921828290,0.21373,61180.0,61170.0,0.081743]
[1727921829398,0.081731,61179.0,61170.0,0.081743]
[1727921830586,0.082731,61179.0,61170.0,0.081743]
[1727921830886,0.083731,61179.0,61170.0,0.081743]
[1727921832386,0.081733,61178.0,61170.0,0.081743]
[1727921833593,0.082733,61178.0,61170.0,0.081743]
[1727921833897,0.001,61178.0,61171.0,0.45492476]
[1727921834086,0.14662064,61180.0,61172.0,0.30328317]
[1727921834283,0.3608,61174.0,61173.0,0.1786978]
[1727921835201,0.3608,61174.0,61172.0,0.12458537]
[1727921836690,0.3618,61174.0,61172.0,0.12458537]
[1727921837295,0.3618,61174.0,61170.0,0.081743]
[1727921838386,0.3628,61174.0,61170.0,0.081743]
[1727921839899,0.3628,61174.0,61171.0,0.081741]
[1727921840898,0.3618,61174.0,61168.0,0.00245216]
[1727921841101,0.3608,61169.0,61168.0,0.00245216]
[1727921841301,0.4908,61169.0,61168.0,0.00245216]
[1727921841500,0.572544,61169.0,61168.0,0.00245216]
[1727921842903,0.572544,61169.0,61163.0,0.16308521]
[1727921842904,0.081751,61164.0,61163.0,0.16308521]
[1727921843105,0.211751,61164.0,61163.0,0.16308521]
[1727921843292,1.22048,61164.0,61159.0,0.17935837]
[1727921843497,0.211756,61160.0,61159.0,0.17935837]
[1727921845007,0.001,61164.0,61163.0,0.081752]
[1727921845199,0.002,61164.0,61163.0,0.211752]
[1727921846597,0.001,61164.0,61163.0,0.702232]
[1727921847001,0.3608,61169.0,61166.0,0.081747]
[1727921847202,0.3608,61169.0,61167.0,0.13]
[1727921847603,0.3608,61169.0,61166.0,0.081747]
[1727921848509,0.3618,61169.0,61166.0,0.081747]
[1727921848710,0.3628,61169.0,61166.0,0.081747]
[1727921850606,0.3618,61169.0,61166.0,0.081747]
[1727921850813,0.3628,61169.0,61166.0,0.081747]
[1727921852108,0.38651129,61169.0,61166.0,0.081747]
[1727921852407,0.13,61167.0,61161.0,0.081754]
[1727921852597,0.13,61163.0,61159.0,0.19589041]
[1727921852999,0.211753,61163.0,61159.0,0.19589041]
[1727921853310,0.211753,61163.0,61159.0,0.11413241]
[1727921853508,0.211753,61163.0,61160.0,0.081756]
[1727921853711,0.132,61163.0,61159.0,0.11413241]
[1727921853912,0.002,61163.0,61162.0,0.081754]
[1727921854613,0.001,61163.0,61162.0,0.081754]
[1727921854800,0.002,61163.0,61162.0,0.081754]
[1727921855404,0.62248,61163.0,61158.0,0.081759]
[1727921855717,0.13,61159.0,61154.0,0.081764]
[1727921855917,0.086,61158.0,61155.0,0.27631933]
[1727921856213,0.08176,61157.0,61156.0,0.27631933]
[1727921856418,0.08176,61157.0,61156.0,0.12462703]
[1727921856419,0.44256,61157.0,61156.0,0.12462703]
[1727921856609,1.53312,61157.0,61151.0,0.17947679]
[1727921856910,0.211767,61152.0,61151.0,0.17947679]
[1727921857118,0.211767,61152.0,61151.0,0.1142089]
[1727921857309,1.302367,61152.0,61151.0,0.1142089]
[1727921858103,1.303367,61152.0,61151.0,0.1142089]
[1727921859319,2.024967,61152.0,61151.0,0.1142089]
[1727921859809,2.025967,61152.0,61151.0,0.1142089]
[1727921860018,2.025967,61152.0,61145.0,0.09777993]
[1727921860019,2.024967,61152.0,61145.0,0.09777993]
[1727921860216,0.081775,61146.0,61145.0,0.09777993]
[1727921860902,0.442575,61146.0,61145.0,0.09777993]
[1727921862319,0.442575,61146.0,61145.0,0.17955593]
[1727921862816,0.443575,61146.0,61145.0,0.081776]
[1727921863620,0.444575,61146.0,61145.0,0.081776]
[1727921865409,0.444575,61146.0,61141.0,0.081781]
[1727921865410,0.081777,61145.0,61141.0,0.081781]
[1727921865611,0.081777,61145.0,61142.0,0.08178]
[1727921866711,0.082777,61145.0,61143.0,0.081779]
[1727921866915,0.083777,61145.0,61143.0,0.081779]
[1727921869617,0.082777,61145.0,61143.0,0.081779]
[1727921869915,0.444577,61145.0,61143.0,0.081779]
[1727921871614,0.3628,61145.0,61144.0,0.164378]
[1727921871821,0.002,61145.0,61144.0,0.655018]
[1727921872011,0.3608,61158.0,61144.0,1.17324]
[1727921872210,0.3608,61153.0,61152.0,0.081767]
[1727921874115,0.081767,61152.0,61148.0,0.081771]
[1727921874325,0.081767,61152.0,61150.0,0.081769]
[1727921874520,0.3628,61153.0,61152.0,0.081767]
[1727921874825,0.002,61153.0,61152.0,0.081767]
[1727921875816,0.003,61153.0,61152.0,0.081767]
[1727921876426,0.001,61153.0,61152.0,0.081767]
[1727921877022,0.3608,61158.0,61155.0,0.081763]
[1727921877922,0.3608,61158.0,61157.0,0.08176]
[1727921879034,0.02326191,61165.0,61156.0,0.0429]
[1727921879035,0.02326191,61165.0,61163.0,0.081752]
[1727921879217,0.081748,61166.0,61163.0,0.081752]
[1727921879416,0.10517724,61166.0,61163.0,0.081752]
[1727921880237,0.008,61165.0,61162.0,0.081754]
[1727921881627,0.091749,61166.0,61162.0,0.081754]
[1727921881836,0.099749,61166.0,61162.0,0.081754]
[1727921882338,0.007,61165.0,61162.0,0.081754]
[1727921882530,0.016,61165.0,61162.0,0.081754]
[1727921883035,0.009,61165.0,61162.0,0.081754]
[1727921883628,0.3608,61163.0,61162.0,0.081754]
[1727921884232,0.15625354,61163.0,61162.0,0.35803492]
[1727921885039,0.16325354,61163.0,61162.0,0.35803492]
[1727921885630,0.007,61163.0,61162.0,0.35803492]
[1727921886031,0.007,61163.0,61162.0,0.081754]
[1727921886635,0.016,61163.0,61162.0,0.081754]
[1727921886839,0.016,61163.0,61162.0,0.211754]
[1727921889224,0.016,61163.0,61162.0,1.302234]
[1727921892033,0.3646,61174.0,61173.0,0.081739]
[1727921892243,0.3608,61174.0,61173.0,0.081739]
[1727921892630,0.00245287,61177.0,61176.0,0.081735]
[1727921892841,0.00245287,61177.0,61176.0,0.211735]
[1727921893047,0.0038,61187.0,61186.0,0.081722]
[1727921893230,0.0406,61197.0,61176.0,1.5812]
[1727921893231,0.41151,61195.0,61183.0,0.13]
[1727921893544,0.41151,61195.0,61176.0,0.3646]
[1727921893545,0.081711,61194.0,61189.0,0.081717]
[1727921893746,0.38390629,61192.0,61189.0,0.081717]
[1727921894045,0.3608,61192.0,61191.0,0.211715]
[1727921894339,0.3608,61192.0,61191.0,0.081715]
[1727921894840,0.3748,61192.0,61191.0,0.081715]
[1727921895143,0.014,61192.0,61191.0,0.211715]
[1727921895537,0.3608,61198.0,61195.0,0.081709]
[1727921896839,0.3608,61198.0,61191.0,0.002]
[1727921897035,0.081708,61196.0,61191.0,0.082715]
[1727921897241,0.014,61192.0,61191.0,0.083715]
[1727921897644,0.081708,61196.0,61191.0,0.082715]
[1727921897844,0.081708,61196.0,61195.0,0.001]
[1727921898149,0.081708,61196.0,61195.0,0.002]
[1727921898443,0.3748,61198.0,61197.0,0.081707]
[1727921898835,0.3608,61198.0,61197.0,0.081707]
[1727921899748,0.0024517,61200.0,61197.0,0.081707]
[1727921899936,0.0024517,61200.0,61199.0,0.13]
[1727921901247,0.0164517,61200.0,61199.0,0.131]
[1727921901844,0.0304517,61200.0,61199.0,0.131]
[1727921902749,0.0164517,61200.0,61199.0,0.001]
[1727921902941,0.0304517,61200.0,61199.0,0.002]
[1727921905344,0.4729547,61200.0,61199.0,0.002]
[1727921906342,0.1121547,61200.0,61199.0,0.002]
[1727921906745,0.0304517,61200.0,61199.0,0.132]
[1727921906943,0.0304517,61200.0,61199.0,0.213704]
[1727921908548,0.0304517,61200.0,61199.0,0.083704]
[1727921909950,0.1121547,61200.0,61199.0,0.002]
[1727921911046,0.0304517,61200.0,61199.0,0.213704]
[1727921912755,0.0038,61209.0,61199.0,1.2222]
[1727921912941,0.00245089,61214.0,61213.0,0.081686]
[1727921912942,0.00625089,61214.0,61213.0,0.081686]
[1727921913139,0.00245089,61214.0,61213.0,0.211686]
[1727921913753,0.00245089,61214.0,61213.0,0.081686]
[1727921914553,0.00245089,61214.0,61213.0,0.001]
[1727921914554,0.01645089,61214.0,61213.0,0.001]
[1727921914744,0.09813489,61214.0,61213.0,0.001]
[1727921914947,0.10613489,61214.0,61213.0,0.002]
[1727921916752,0.46693489,61214.0,61213.0,0.002]
[1727921918656,0.95701489,61214.0,61213.0,0.002]
[1727921918856,1.55701489,61214.0,61213.0,0.002]
[1727921921657,0.95701489,61214.0,61213.0,0.002]
[1727921921852,1.55701489,61214.0,61213.0,0.002]
[1727921922048,0.95701489,61214.0,61213.0,0.002]
[1727921922369,1.06693489,61214.0,61213.0,0.002]
[1727921922551,1.55701489,61214.0,61213.0,0.002]
[1727921923652,0.95701489,61214.0,61213.0,0.002]
[1727921926956,0.46693489,61214.0,61213.0,0.002]
[1727921932884,0.38525089,61214.0,61213.0,0.213686]
[1727921933185,0.3608,61221.0,61220.0,0.081676]
[1727921933376,0.3608,61226.0,61213.0,1.303766]
[1727921933377,0.3608,61226.0,61225.0,0.08167]
[1727921934383,0.38474258,61226.0,61225.0,0.08167]
[1727921934584,0.39174258,61226.0,61225.0,0.08267]
[1727921935281,0.39774258,61226.0,61225.0,0.08367]
[1727921939282,0.50647385,61226.0,61225.0,0.08367]
[1727921939478,0.50647385,61226.0,61225.0,0.002]
[1727921939679,0.58814185,61226.0,61225.0,0.002]
[1727921940176,0.58814402,61226.0,61225.0,0.002]
[1727921940576,0.71814402,61226.0,61225.0,0.002]
[1727921940779,0.71814402,61226.0,61217.0,0.041]
[1727921940780,0.63647602,61226.0,61217.0,0.041]
[1727921940982,0.13,61222.0,61217.0,0.041]
[1727921941181,0.10873344,61221.0,61217.0,0.041]
[1727921941383,0.05014359,61220.0,61217.0,0.041]
[1727921941587,0.05014359,61219.0,61218.0,0.081679]
[1727921941885,0.05014359,61219.0,61218.0,0.211679]
[1727921942778,0.05014359,61219.0,61218.0,0.212679]
[1727921943587,0.10873344,61219.0,61218.0,0.212679]
[1727921944183,0.10873344,61219.0,61218.0,0.213679]
[1727921944892,0.0038,61229.0,61218.0,1.064519]
[1727921945084,0.05013981,61228.0,61218.0,0.46829727]
[1727921945290,0.26026725,61231.0,61228.0,0.211665]
[1727921945592,0.23541533,61234.0,61229.0,0.0385]
[1727921946579,0.081662,61232.0,61229.0,0.0385]
[1727921946987,0.081662,61232.0,61229.0,0.0395]
[1727921947591,0.081662,61232.0,61229.0,0.0385]
[1727921947786,0.23541533,61234.0,61229.0,0.0385]
[1727921947787,0.442463,61230.0,61229.0,0.0395]
[1727921947996,0.442463,61230.0,61229.0,0.002]
[1727921948894,0.442463,61230.0,61229.0,0.001]
[1727921949284,0.442463,61230.0,61229.0,0.002]
[1727921949993,0.442463,61230.0,61220.0,0.0396]
[1727921949994,0.081673,61223.0,61220.0,0.0396]
[1727921950590,0.0395,61229.0,61219.0,0.081677]
[1727921950791,0.13,61223.0,61219.0,0.081677]
[1727921951195,0.081676,61220.0,61219.0,0.081677]
[1727921952486,0.3608,61221.0,61212.0,0.0407]
[1727921952691,0.13,61220.0,61212.0,0.0407]
[1727921952900,0.081676,61220.0,61219.0,0.001]
[1727921953596,0.13182451,61220.0,61219.0,0.001]
[1727921953987,0.081688,61211.0,61209.0,0.085491]
[1727921954192,0.081688,61211.0,61209.0,0.081691]
[1727921954494,0.08169,61210.0,61209.0,0.081691]
[1727921954690,0.0765,61219.0,61210.0,0.081689]
[1727921954896,0.081687,61212.0,61210.0,0.081689]
[1727921956099,0.081687,61212.0,61210.0,0.084689]
[1727921956699,0.081687,61212.0,61210.0,0.088689]
[1727921956902,0.081688,61211.0,61210.0,0.004]
[1727921957996,0.081688,61211.0,61209.0,0.081691]
[1727921958807,0.0501519,61210.0,61209.0,0.081691]
[1727921958993,0.0501519,61210.0,61208.0,0.13]
[1727921959294,0.0501519,61209.0,61208.0,0.13]
[1727921960490,0.08169,61210.0,61208.0,0.13]
[1727921960897,0.08369,61210.0,61208.0,0.13]
[1727921961093,0.05015384,61209.0,61208.0,0.13]
[1727921961319,0.08369,61210.0,61208.0,0.13]
[1727921961497,0.002,61209.0,61208.0,0.13]
[1727921964792,0.002,61209.0,61207.0,0.0024506]
[1727921965000,0.081692,61208.0,61207.0,0.0024506]
[1727921965300,0.442492,61208.0,61207.0,0.0024506]
[1727921966110,0.519392,61208.0,61207.0,0.0024506]
[1727921967398,0.521392,61208.0,61207.0,0.0024506]
[1727921967598,0.4397,61208.0,61202.0,0.0817]
[1727921967793,0.081699,61203.0,61202.0,0.0817]
[1727921969110,0.083699,61203.0,61202.0,0.0817]
[1727921969305,0.002,61203.0,61202.0,0.0817]
[1727921972407,0.002,61203.0,61201.0,0.0391]
[1727921972617,0.081702,61201.0,61198.0,0.00088]
[1727921972907,0.081702,61201.0,61194.0,0.0806]
[1727921973103,0.081702,61201.0,61199.0,0.081703]
[1727921973815,0.081702,61201.0,61200.0,0.13]
[1727921975314,0.082702,61201.0,61200.0,0.13]
[1727921976209,0.212702,61201.0,61195.0,0.081709]
[1727921976408,0.081707,61197.0,61195.0,0.081709]
[1727921977413,0.081707,61197.0,61195.0,0.084709]
[1727921977911,0.081707,61197.0,61195.0,0.088709]
[1727921978809,0.081708,61196.0,61195.0,0.007]
[1727921982709,0.10519026,61196.0,61195.0,0.007]
[1727921983719,0.23519026,61196.0,61195.0,0.007]
[1727921984414,0.10519026,61196.0,61195.0,0.007]
[1727921987020,0.46599026,61196.0,61195.0,0.007]
[1727921988911,0.10519026,61196.0,61195.0,0.007]
[1727921989216,0.46599026,61196.0,61195.0,0.007]
[1727921990419,0.10519026,61196.0,61195.0,0.007]
[1727921990716,0.46599026,61196.0,61195.0,0.007]
[1727921991718,0.52461211,61196.0,61195.0,0.007]
[1727921992820,0.50112985,61196.0,61195.0,0.007]
[1727921993010,0.05862185,61196.0,61195.0,0.08871]
[1727921997832,0.3608,61201.0,61198.0,0.081705]
[1727921999230,0.442503,61201.0,61198.0,0.082705]
[1727921999614,0.3608,61201.0,61198.0,0.082705]
[1727921999821,0.081704,61200.0,61198.0,0.082705]
[1727922000528,0.081704,61200.0,61199.0,0.081704]
[1727922002136,0.02398415,61203.0,61195.0,0.081709]
[1727922002431,0.081706,61198.0,61195.0,0.081709]
[1727922002833,0.081707,61197.0,61195.0,0.081709]
[1727922003521,0.081707,61197.0,61195.0,0.084709]
[1727922004043,0.081707,61197.0,61196.0,0.081708]
[1727922004737,0.0038,61205.0,61196.0,0.13]
[1727922004932,0.3608,61209.0,61208.0,0.081692]
[1727922005126,0.08169,61210.0,61208.0,0.211692]
[1727922005326,0.00084,61209.0,61208.0,0.211692]
[1727922005529,0.00084,61209.0,61208.0,0.081692]
[1727922005530,0.081691,61209.0,61208.0,0.081692]
[1727922005733,0.081694,61207.0,61204.0,0.081697]
[1727922006026,0.081694,61207.0,61200.0,0.5304]
[1727922006027,0.081694,61207.0,61205.0,0.14688042]
[1727922006227,0.081694,61207.0,61206.0,0.081695]
[1727922006533,0.13184964,61207.0,61206.0,0.081695]
[1727922006732,0.34393594,61207.0,61206.0,0.081695]
[1727922007226,0.13184964,61207.0,61206.0,0.081695]
[1727922008427,0.05015564,61207.0,61206.0,0.081695]
[1727922008730,0.05215564,61207.0,61206.0,0.082695]
[1727922009431,0.05215564,61207.0,61206.0,0.083695]
[1727922010225,0.002,61207.0,61206.0,0.083695]
[1727922011825,0.002,61207.0,61206.0,0.123395]
[1727922012520,0.05214856,61207.0,61206.0,0.123395]
[1727922013523,0.002,61207.0,61206.0,0.123395]
[1727922014631,0.002,61207.0,61206.0,0.083695]
[1727922016029,0.083694,61207.0,61206.0,0.083695]
[1727922017521,0.02585191,61207.0,61206.0,0.083695]
[1727922020431,0.10754591,61207.0,61206.0,0.083695]
[1727922020932,0.02585191,61207.0,61206.0,0.083695]
[1727922021139,0.002,61207.0,61206.0,0.083695]
[1727922021339,0.13,61221.0,61214.0,0.081684]
[1727922021340,0.1185,61221.0,61214.0,0.081684]
[1727922021634,0.0384,61221.0,61216.0,0.081682]
[1727922021833,0.0038,61224.0,61221.0,0.081675]
[1727922022037,0.0038,61224.0,61221.0,0.211675]
[1727922022338,0.38398555,61222.0,61221.0,0.211675]
[1727922023239,0.38598555,61222.0,61221.0,0.212675]
[1727922023431,0.38598555,61222.0,61221.0,0.213675]
[1727922023636,0.38598555,61222.0,61221.0,0.083675]
[1727922025535,0.3628,61222.0,61221.0,0.083675]
[1727922025737,0.002,61222.0,61221.0,0.213675]
[1727922028850,0.05214002,61222.0,61221.0,0.213675]
[1727922029543,0.05214002,61222.0,61221.0,0.2373426]
[1727922030242,0.05214002,61222.0,61221.0,0.213675]
[1727922032846,0.05214002,61222.0,61221.0,0.083675]
[1727922034139,0.05214002,61222.0,61221.0,0.214675]
[1727922034339,0.0008,61230.0,61221.0,0.935275]
[1727922034544,0.0008,61230.0,61229.0,0.211664]
[1727922034940,0.0008,61230.0,61229.0,1.301624]
[1727922035152,0.0008,61230.0,61229.0,0.701624]
[1727922037036,1e-06,61230.0,61229.0,1.301624]
[1727922037248,1e-06,61230.0,61229.0,1.662424]
[1727922037449,1e-06,61230.0,61229.0,1.696124]
[1727922038145,1e-06,61230.0,61229.0,1.72008905]
[1727922039348,1e-06,61230.0,61229.0,1.59008905]
[1727922039551,1e-06,61230.0,61229.0,1.72008905]
[1727922040748,1e-06,61230.0,61229.0,1.12008905]
[1727922041044,0.0415,61246.0,61229.0,1.63842505]
[1727922041244,0.0415,61246.0,61245.0,0.211643]
[1727922042444,0.0415,61246.0,61245.0,0.212643]
[1727922044757,0.0415,61246.0,61245.0,0.213643]
[1727922049345,0.09162347,61246.0,61245.0,0.213643]
[1727922051960,0.0415,61246.0,61245.0,0.213643]
[1727922055765,0.0415,61246.0,61234.0,0.081657]
[1727922055766,0.50080496,61246.0,61234.0,0.081657]
[1727922055948,0.50080496,61246.0,61233.0,0.4908]
[1727922055949,0.13,61242.0,61233.0,0.4918]
[1727922056246,0.37080496,61246.0,61230.0,0.45404]
[1727922056247,0.13,61237.0,61230.0,0.45404]
[1727922056444,0.0681,61236.0,61230.0,0.13]
[1727922056749,0.0681,61236.0,61235.0,0.081656]
[1727922057158,0.081646,61243.0,61240.0,0.081649]
[1727922058159,0.081646,61243.0,61241.0,0.081648]
[1727922058355,0.081646,61243.0,61242.0,0.081647]
[1727922060358,0.081646,61243.0,61242.0,0.082647]
[1727922060567,0.0688,61244.0,61243.0,0.081646]
[1727922060757,0.01000496,61246.0,61245.0,0.081643]
[1727922061566,0.01000496,61246.0,61242.0,0.002]
[1727922061747,0.13,61244.0,61242.0,0.002]
[1727922061947,0.081644,61244.0,61243.0,0.081645]
[1727922062664,0.081644,61244.0,61243.0,0.082645]
[1727922064350,0.081644,61244.0,61243.0,0.083645]
[1727922064769,0.081644,61244.0,61243.0,0.002]
[1727922064958,0.211644,61244.0,61243.0,0.002]
[1727922068571,0.211644,61244.0,61236.0,0.081655]
[1727922068572,0.081654,61237.0,61236.0,0.081655]
[1727922068967,0.13178579,61237.0,61236.0,0.081655]
[1727922070265,0.13178579,61237.0,61236.0,0.082655]
[1727922070672,0.19036439,61237.0,61236.0,0.082655]
[1727922070965,0.19036439,61237.0,61236.0,0.083655]
[1727922073061,0.21421292,61237.0,61236.0,0.083655]
[1727922073465,0.21421292,61237.0,61236.0,0.002]
[1727922073676,0.34421292,61237.0,61236.0,0.002]
[1727922073874,0.34421292,61237.0,61227.0,0.0038]
[1727922073875,0.081666,61228.0,61227.0,0.0038]
[1727922074175,0.081672,61223.0,61221.0,0.081674]
[1727922074370,0.13,61225.0,61217.0,0.0324]
[1727922074572,0.081675,61221.0,61217.0,0.0324]
[1727922074774,0.081675,61221.0,61219.0,0.081677]
[1727922075675,0.13,61225.0,61219.0,0.081677]
[1727922075973,0.02374282,61225.0,61220.0,0.13]
[1727922076177,0.0331,61227.0,61220.0,0.13]
[1727922076974,0.081671,61224.0,61220.0,0.13]
[1727922077175,0.081675,61221.0,61219.0,0.014]
[1727922077376,0.05690166,61227.0,61219.0,0.006]
[1727922077578,0.081675,61221.0,61220.0,0.005]
[1727922077875,0.081675,61221.0,61220.0,0.135]
[1727922078080,0.05690166,61227.0,61220.0,0.135]
[1727922078276,0.081671,61225.0,61220.0,0.135]
[1727922078475,0.13856866,61227.0,61220.0,0.135]
[1727922078972,0.13856866,61227.0,61224.0,0.13]
[1727922078973,0.0331,61227.0,61224.0,0.13]
[1727922079281,0.0331,61227.0,61225.0,0.0626]
[1727922079981,0.081673,61223.0,61220.0,0.008]
[1727922080178,0.081673,61223.0,61220.0,0.003]
[1727922080680,0.081675,61221.0,61220.0,0.003]
[1727922080880,0.081674,61222.0,61220.0,0.003]
[1727922081378,0.3608,61226.0,61220.0,0.005]
[1727922081777,0.081675,61221.0,61220.0,0.005]
[1727922082172,0.081675,61221.0,61220.0,0.008]
[1727922082571,0.13181897,61221.0,61220.0,0.008]
[1727922082980,0.13181897,61221.0,61220.0,0.005]
[1727922083284,0.13181897,61221.0,61220.0,0.008]
[1727922083475,0.05014397,61221.0,61220.0,0.138]
[1727922084074,0.05014397,61221.0,61220.0,0.133]
[1727922084284,0.05014397,61221.0,61220.0,0.138]
[1727922087077,0.05014397,61221.0,61220.0,0.62804]
[1727922087278,0.05014397,61221.0,61220.0,1.22804]
[1727922087877,0.05014397,61221.0,61220.0,1.25138189]
[1727922088785,0.081671,61224.0,61220.0,1.37587012]
[1727922088971,0.3608,61226.0,61221.0,0.22204724]
[1727922089179,0.04080359,61223.0,61222.0,0.12448823]
[1727922090080,0.081674,61222.0,61221.0,0.09755901]
[1727922090479,0.081674,61222.0,61221.0,0.16261754]
[1727922091179,0.211674,61222.0,61221.0,0.09755901]
[1727922091875,0.081675,61221.0,61220.0,0.06805853]
[1727922092077,0.081675,61221.0,61220.0,0.06505853]
[1727922092969,0.081675,61221.0,61220.0,0.11386636]
[1727922093384,0.081675,61221.0,61220.0,0.11886636]
[1727922093586,0.081675,61221.0,61220.0,0.12186636]
[1727922093884,0.081686,61213.0,61212.0,0.0038]
[1727922094181,0.081692,61208.0,61207.0,0.00245019]
[1727922094488,0.211692,61208.0,61207.0,0.00245019]
[1727922094876,0.081694,61207.0,61206.0,0.09760246]
[1727922095078,0.602254,61207.0,61206.0,0.09760246]
[1727922095379,1.202254,61207.0,61206.0,0.09760246]
[1727922095773,0.712094,61207.0,61206.0,0.09760246]
[1727922095971,1.202254,61207.0,61206.0,0.11160246]
[1727922096375,1.22545087,61207.0,61206.0,0.11160246]
[1727922096880,0.62545087,61207.0,61206.0,0.11160246]
[1727922097080,0.98625087,61207.0,61206.0,0.11160246]